bitfinex-derivatives/quotes_ETHF0:USTF0_20251223
["timestamp","ask_amount","ask_price","bid_price","bid_amount"]
[1766471702194,3.55318,2957.4,2956.1,2.685e-05]
[1766471702391,0.16919,2957.3,2956.1,2.685e-05]
[1766471702692,0.00504457,2957.0,2956.1,3.38402685]
[1766471702893,3.384,2956.9,2956.1,3.38402685]
[1766471703100,2.56914678,2956.3,2953.7,0.16939]
[1766471703289,3.55325,2956.2,2953.8,12.812]
[1766471703493,3.55325,2956.2,2954.1,3.91542974]
[1766471703801,3.55325,2956.2,2954.2,3.384]
[1766471703999,3.55325,2956.2,2954.3,3.384]
[1766471704197,0.00507142,2955.5,2955.0,0.00507142]
[1766471704400,0.00798836,2955.5,2955.0,0.00507142]
[1766471704702,3.384,2956.1,2955.0,0.00507142]
[1766471705604,3.38663534,2956.1,2955.0,0.00507142]
[1766471708903,3.38663534,2956.1,2955.1,3.384]
[1766471715707,3.38663534,2956.1,2954.9,3.384]
[1766471715908,3.55589534,2956.1,2954.7,3.384]
[1766471716503,0.16927,2955.9,2954.6,3.384]
[1766471716712,0.00507142,2955.5,2955.0,0.00507142]
[1766471716901,3.384,2955.4,2954.6,3.384]
[1766471717300,3.384,2955.4,2954.3,0.00424754]
[1766471717904,3.384,2955.4,2954.6,0.00507142]
[1766471718305,3.5533,2955.4,2954.6,0.00507142]
[1766471719211,0.1693,2955.3,2954.6,1.42e-06]
[1766471719415,0.16931,2955.1,2953.2,8.463]
[1766471719715,17.90532,2955.0,2953.3,9.793]
[1766471720012,3.385,2954.9,2953.3,9.793]
[1766471720208,0.16932,2955.0,2953.3,9.793]
[1766471720413,3.385,2954.9,2953.3,9.793]
[1766471720717,3.385,2954.9,2953.9,0.00507142]
[1766471720913,3.385,2954.9,2954.0,3.385]
[1766471721310,3.385,2954.9,2954.1,3.385]
[1766471722416,3.385,2954.9,2953.9,0.00507142]
[1766471722916,3.385,2954.9,2953.9,3.39007142]
[1766471725919,0.00507142,2955.5,2953.9,3.39007142]
[1766471726221,0.16927,2955.9,2954.0,17.169]
[1766471726510,8.464,2956.7,2954.1,3.57836658]
[1766471726511,3.385,2955.8,2954.1,3.57836658]
[1766471727109,0.00507142,2955.2,2954.1,3.57836658]
[1766471727817,0.00507142,2955.2,2954.2,18.26]
[1766471728220,0.00507142,2955.2,2953.9,0.00507142]
[1766471728416,3.39107142,2955.2,2954.0,3.386]
[1766471728618,3.39107142,2955.2,2954.1,0.039]
[1766471732021,3.39107142,2955.2,2953.9,0.00507142]
[1766471733724,3.56038142,2955.2,2953.9,0.00507142]
[1766471733924,2.43937511,2955.0,2953.9,0.00507142]
[1766471734117,11.851,2954.9,2953.9,0.00507142]
[1766471734421,11.851,2954.9,2953.8,3.386]
[1766471734918,5.889,2954.8,2953.8,3.386]
[1766471735428,5.889,2954.8,2954.0,0.00507142]
[1766471736121,3.39107142,2955.2,2954.1,3.386]
[1766471739720,3.39107142,2955.2,2954.2,9.792]
[1766471740615,0.00507142,2955.2,2954.2,9.792]
[1766471740820,3.386,2955.5,2954.2,9.792]
[1766471741128,3.386,2955.7,2954.2,9.792]
[1766471741525,0.00263534,2956.1,2954.5,2.27005511]
[1766471741728,0.00263534,2956.1,2954.9,2.27005511]
[1766471741932,0.00263534,2956.1,2955.0,9.792]
[1766471742226,3.386,2956.8,2955.0,13.68695836]
[1766471743126,0.00507142,2956.2,2955.6,0.00507142]
[1766471743329,0.00507142,2956.2,2955.7,3.386]
[1766471743629,3.38861862,2956.8,2955.7,3.386]
[1766471750131,0.00261862,2956.8,2955.8,2.27005511]
[1766471750333,3.385,2957.4,2955.8,2.27005511]
[1766471750633,3.385,2957.8,2956.2,2.27005511]
[1766471750934,3.385,2957.8,2956.3,18.25]
[1766471751328,3.38838702,2957.8,2956.3,18.25]
[1766471751533,3.38838702,2957.8,2955.6,2.2791327]
[1766471751829,2.43922511,2957.6,2955.6,0.00907759]
[1766471752034,5.427,2957.5,2955.7,8.491]
[1766471752336,8.462,2957.4,2955.7,8.491]
[1766471754625,0.16919,2957.3,2955.8,3.384]
[1766471754831,3.384,2957.2,2955.9,6.4]
[1766471755434,4.76919,2957.3,2955.9,6.4]
[1766471755633,3.384,2957.2,2955.9,6.4]
[1766471756036,3.384,2957.2,2955.9,5.979]
[1766471756339,3.384,2957.2,2956.0,8.408]
[1766471758037,3.384,2957.6,2956.0,8.408]
[1766471758835,3.384,2957.6,2955.9,2.27005511]
[1766471759041,3.384,2957.6,2956.0,4.757]
[1766471759936,3.384,2957.6,2955.6,0.00907759]
[1766471760138,3.384,2957.6,2955.7,13.302]
[1766471760942,3.384,2957.6,2955.8,18.242]
[1766471761236,3.384,2957.6,2955.6,0.00907759]
[1766471761441,0.16919,2957.2,2955.7,4.756]
[1766471761653,9.27,2957.1,2955.7,4.756]
[1766471765661,9.4392,2957.1,2955.8,9.78]
[1766471766363,9.4392,2957.1,2955.9,3.384]
[1766471766557,0.1692,2957.0,2955.9,3.384]
[1766471766754,2.43926511,2956.9,2955.7,3.384]
[1766471766948,0.16921,2956.9,2955.7,3.384]
[1766471767149,3.384,2956.8,2955.7,3.384]
[1766471768461,3.384,2956.8,2955.8,3.384]
[1766471768659,3.384,2956.8,2955.6,0.00907759]
[1766471768964,3.384,2956.8,2955.7,3.384]
[1766471770858,3.384,2956.8,2955.6,0.00907759]
[1766471771158,3.384,2956.8,2955.8,3.384]
[1766471772956,3.384,2956.8,2955.6,5.55807759]
[1766471773166,3.384,2956.8,2955.9,3.384]
[1766471776767,0.16921,2956.9,2955.9,3.384]
[1766471779766,3.384,2957.1,2955.9,3.384]
[1766471781467,3.384,2957.1,2955.6,0.00907759]
[1766471781667,3.384,2957.1,2956.0,4.788]
[1766471781868,3.384,2957.1,2956.1,3.384]
[1766471782571,0.16918,2957.5,2956.1,3.384]
[1766471784874,0.16918,2957.5,2956.2,9.774]
[1766471785070,0.16918,2957.4,2955.6,0.00907759]
[1766471785271,0.16919,2957.2,2955.7,3.473]
[1766471789170,3.384,2957.1,2955.7,3.473]
[1766471791380,2.384,2957.1,2955.7,3.473]
[1766471792975,3.384,2957.5,2955.7,3.473]
[1766471795378,3.384,2957.5,2955.6,0.00907759]
[1766471795583,3.384,2957.5,2955.8,6.39]
[1766471796579,3.55318,2957.5,2955.8,6.39]
[1766471796780,0.16918,2957.4,2955.9,9.774]
[1766471797787,0.16918,2957.4,2955.9,8.25126043]
[1766471797992,3.384,2957.5,2955.6,0.00907759]
[1766471798198,3.384,2957.5,2955.7,3.384]
[1766471798489,3.384,2957.5,2955.7,3.389]
[1766471799390,0.1692,2957.0,2955.7,3.389]
[1766471799586,3.384,2956.9,2955.7,3.389]
[1766471804483,0.1692,2957.0,2955.7,3.389]
[1766471804683,3.384,2956.9,2955.7,3.389]
[1766471809596,3.384,2956.9,2955.6,0.00907759]
[1766471809789,3.384,2956.9,2955.7,0.005]
[1766471809996,3.384,2956.9,2955.8,3.384]
[1766471812896,3.384,2956.9,2955.8,5.126]
[1766471813197,3.384,2956.9,2955.9,3.384]
[1766471813499,0.1692,2957.0,2955.9,3.384]
[1766471813701,3.384,2956.9,2955.9,3.384]
[1766471818301,0.1692,2957.0,2955.9,3.384]
[1766471818601,3.384,2956.9,2955.9,3.384]
[1766471819497,0.16923,2956.6,2955.6,0.00907759]
[1766471819800,1.51146402,2956.3,2955.6,0.00907759]
[1766471820103,3.384,2956.2,2955.6,0.00907759]
[1766471820398,3.384,2956.2,2955.6,3.38800622]
[1766471820793,7.56569402,2956.6,2955.6,3.38800622]
[1766471820794,0.16923,2956.6,2955.6,3.38800622]
[1766471820994,3.55323,2956.6,2955.6,3.38800622]
[1766471821193,0.00507137,2956.4,2955.6,7.05800622]
[1766471821697,0.00507137,2956.4,2955.6,0.00400622]
[1766471821890,1.51146402,2956.3,2955.7,3.384]
[1766471822198,1.51146402,2956.3,2955.6,0.00400622]
[1766471822199,4.89546402,2956.3,2955.6,0.00400622]
[1766471823104,1.51146402,2956.0,2955.1,3.384]
[1766471823300,3.384,2955.9,2955.1,3.384]
[1766471823495,3.384,2955.9,2954.2,1.51146402]
[1766471823701,3.384,2955.9,2954.3,13.14]
[1766471823905,3.384,2955.9,2954.8,0.00507142]
[1766471824198,1.51146402,2955.6,2952.4,3.0311188]
[1766471824392,1.51146402,2955.6,2952.9,1.51146402]
[1766471824393,1.51146402,2954.5,2952.9,1.51146402]
[1766471824600,3.384,2954.4,2953.0,3.384]
[1766471824797,3.384,2954.4,2953.3,0.00283863]
[1766471825102,3.384,2954.4,2953.4,3.384]
[1766471825304,0.00507142,2954.1,2953.6,0.00507142]
[1766471825506,0.00507142,2954.1,2953.7,3.384]
[1766471826206,0.00507142,2954.1,2953.6,0.00507142]
[1766471827901,0.00295914,2954.4,2953.6,0.00791005]
[1766471828101,3.385,2954.7,2953.6,0.00791005]
[1766471828308,3.385,2954.7,2953.6,0.00507142]
[1766471828507,3.385,2954.7,2953.8,0.00283863]
[1766471828707,3.385,2954.7,2953.9,3.385]
[1766471828908,0.00507142,2954.6,2953.9,3.385]
[1766471829103,0.00769618,2954.6,2953.9,3.385]
[1766471829608,0.00769618,2954.6,2953.6,0.00507142]
[1766471829609,0.00769618,2954.6,2953.7,3.385]
[1766471831402,0.00769618,2954.6,2953.8,0.00283863]
[1766471834711,3.386,2955.0,2953.8,0.00283863]
[1766471834907,3.386,2955.2,2953.8,0.00283863]
[1766471835108,3.386,2955.1,2953.8,0.00283863]
[1766471835312,3.386,2955.1,2953.7,3.385]
[1766471835515,3.386,2955.1,2954.0,0.00283863]
[1766471835707,3.38853427,2955.1,2954.1,3.386]
[1766471838617,0.00253427,2955.1,2954.1,3.386]
[1766471838816,3.38853427,2955.1,2954.1,3.386]
[1766471840519,3.38853427,2955.1,2953.6,4.09307142]
[1766471840723,3.38853427,2955.1,2953.7,3.38883863]
[1766471841921,0.00253427,2955.1,2953.7,3.38883863]
[1766471842122,3.386,2955.0,2953.7,3.38883863]
[1766471843619,3.386,2955.0,2953.7,3.386]
[1766471844220,3.55532,2955.0,2953.7,3.386]
[1766471844416,0.16932,2954.9,2953.7,3.386]
[1766471844718,5.9603423,2955.0,2953.4,0.0038348]
[1766471845430,0.16935,2954.5,2953.4,0.0038348]
[1766471845724,0.00507142,2954.2,2953.7,0.00507142]
[1766471845923,3.386,2954.1,2953.7,0.00507142]
[1766471850736,0.00507142,2954.2,2953.7,0.00507142]
[1766471857832,3.386,2954.4,2953.7,0.00507142]
[1766471858732,3.386,2954.4,2953.7,3.39107142]
[1766471859537,3.386,2954.4,2953.7,0.00507142]
[1766471863444,3.386,2954.4,2953.4,0.00667343]
[1766471863742,3.386,2954.4,2953.4,3.39267343]
[1766471864544,0.00507142,2954.2,2953.6,0.00507142]
[1766471867242,0.00507142,2954.2,2953.4,3.39267343]
[1766471867846,3.387,2954.1,2953.4,0.00667343]
[1766471868242,3.387,2954.1,2953.5,0.00507142]
[1766471871346,3.387,2954.1,2953.5,3.39207142]
[1766471871744,0.00507142,2954.2,2953.7,1.51433509]
[1766471873550,5.889,2954.7,2954.1,1.51433509]
[1766471873943,5.889,2954.7,2953.9,1.51433509]
[1766471874450,0.00507142,2954.6,2953.9,1.51433509]
[1766471876644,0.00507142,2954.6,2954.4,0.00283863]
[1766471887957,5.889,2954.7,2954.4,0.00283863]
[1766471888759,3.55784427,2955.1,2954.4,0.00283863]
[1766471888954,3.38853427,2955.1,2954.4,3.38883863]
[1766471890556,3.38853427,2955.1,2954.7,1.51433509]
[1766471890763,3.38853427,2955.1,2954.4,3.38883863]
[1766471891361,3.38853427,2955.1,2954.4,0.00283863]
[1766471897680,3.38853427,2955.1,2954.5,1.51433509]
[1766471898183,3.38853427,2955.1,2954.4,0.00283863]
[1766471898769,0.00253427,2955.1,2954.5,1.51433509]
[1766471899675,0.00253427,2955.1,2954.7,1.51433509]
[1766471899870,1.68359509,2956.1,2954.9,1.51433509]
[1766471900075,0.16926,2956.1,2955.2,0.00507142]
[1766471900279,4.347,2956.0,2955.2,0.00507142]
[1766471900871,4.35010934,2956.0,2955.2,0.00507142]
[1766471901276,0.00310934,2956.0,2955.2,1.51940651]
[1766471901475,3.386,2955.9,2955.2,4.90540651]
[1766471901668,3.386,2955.9,2955.2,3.39107142]
[1766471902376,3.386,2955.9,2955.2,4.90540651]
[1766471902582,3.39014992,2955.9,2955.2,4.90540651]
[1766471902879,3.39014992,2955.9,2955.2,3.39107142]
[1766471905778,3.39014992,2955.9,2955.2,4.90540651]
[1766471905977,3.39014992,2955.9,2955.4,1.51433509]
[1766471906786,3.385,2956.2,2955.8,1.51433509]
[1766471907079,3.385,2956.4,2956.0,1.51433509]
[1766471907286,3.385,2956.5,2955.8,1.51433509]
[1766471907684,3.38775095,2956.5,2955.8,1.5167671]
[1766471908286,3.38775095,2956.5,2955.8,4.9017671]
[1766471908586,3.38775095,2956.5,2956.3,0.00283863]
[1766471909987,3.38775095,2956.5,2955.8,3.38743201]
[1766471911489,3.38775095,2956.5,2955.9,1.51433509]
[1766471912490,0.00275095,2956.5,2955.9,1.51433509]
[1766471914080,0.00275095,2956.5,2955.8,3.38743201]
[1766471915883,0.00275095,2956.5,2955.8,0.00243201]
[1766471916086,3.385,2956.4,2955.0,1.51185656]
[1766471916287,3.385,2956.4,2955.3,3.385]
[1766471917189,3.385,2956.4,2955.3,3.38843313]
[1766471917383,0.00275095,2956.5,2955.3,3.38843313]
[1766471917583,3.385,2956.4,2955.5,1.51185656]
[1766471917887,3.385,2956.4,2955.6,3.385]
[1766471918087,3.385,2956.4,2955.5,3.385]
[1766471925294,0.00275095,2956.5,2955.6,1.469652]
[1766471925599,3.384,2956.4,2955.6,1.469652]
[1766471928807,0.00275095,2956.5,2955.9,1.469652]
[1766471929007,0.00275095,2956.5,2956.0,3.384]
[1766471930405,1.47240295,2956.5,2955.7,3.384]
[1766471930607,0.00275095,2956.5,2955.7,3.384]
[1766471936719,3.38675095,2956.5,2955.7,3.384]
[1766471937316,3.55322,2956.8,2955.7,3.384]
[1766471938221,3.55633658,2956.8,2955.7,3.384]
[1766471939025,3.55633658,2956.8,2955.9,1.469652]
[1766471939323,3.55633658,2956.8,2956.0,3.384]
[1766471940225,0.00311658,2956.8,2956.0,3.384]
[1766471940428,3.38711658,2956.8,2956.0,3.384]
[1766471941425,1.469652,2958.2,2956.0,3.384]
[1766471941426,3.384,2957.5,2956.6,1.469652]
[1766471941622,3.384,2957.5,2956.8,0.00507142]
[1766471942227,3.38706698,2957.5,2956.8,0.00507142]
[1766471945129,3.55624698,2957.5,2956.8,0.00507142]
[1766471945933,1.469652,2957.4,2956.8,0.00507142]
[1766471946132,1.47472342,2957.4,2956.4,3.384]
[1766471946528,0.00507142,2957.4,2956.4,3.384]
[1766471946727,3.384,2957.3,2956.4,3.384]
[1766471947224,3.384,2957.3,2956.6,0.00507142]
[1766471947733,4.853652,2957.3,2956.4,3.384]
[1766471948731,4.853652,2957.3,2956.6,0.00507142]
[1766471953430,0.00507142,2957.4,2956.6,0.00507142]
[1766471953634,9.268,2957.3,2956.6,0.00507142]
[1766471953938,9.268,2957.3,2956.4,3.384]
[1766471953939,10.737652,2957.3,2956.4,3.384]
[1766471954530,10.906842,2957.3,2956.1,3.384]
[1766471955038,10.906842,2957.3,2956.4,0.00507142]
[1766471956837,3.38907142,2957.4,2956.7,1.469652]
[1766471957142,3.38907142,2957.4,2956.4,3.38907142]
[1766471959838,3.38907142,2957.4,2956.4,0.00507142]
[1766471960042,1.469652,2957.3,2956.4,0.00507142]
[1766471960636,1.469652,2957.0,2955.5,1.469652]
[1766471960840,9.267,2956.9,2955.7,1.469652]
[1766471961845,9.267,2956.9,2956.0,0.00507142]
[1766471962044,9.267,2956.9,2956.0,3.38807142]
[1766471962442,9.267,2956.9,2956.0,0.00507142]
[1766471964547,9.267,2956.8,2956.0,0.00507142]
[1766471969241,0.1692,2957.1,2956.0,3.38907142]
[1766471969552,9.268,2957.0,2956.0,3.38907142]
[1766471970549,1.469652,2956.9,2956.0,3.38907142]
[1766471971452,1.469652,2956.9,2956.0,0.00507142]
[1766471974558,1.469652,2956.7,2956.0,0.00507142]
[1766471974753,9.268,2956.6,2956.0,0.00507142]
[1766471979357,10.73773364,2956.6,2956.0,0.00507142]
[1766471980653,9.268,2956.6,2956.0,0.00507142]
[1766471980858,10.73773364,2956.6,2956.0,0.00507142]
[1766471981757,9.268,2956.6,2955.3,0.00343313]
[1766471981963,2.93946728,2955.4,2954.4,3.384]
[1766471982253,1.46973364,2955.2,2954.4,3.384]
[1766471982756,10.18173364,2955.4,2954.4,3.384]
[1766471982962,0.00507142,2955.1,2954.5,0.00507142]
[1766471983959,1.46973364,2955.0,2954.5,0.00507142]
[1766471984260,0.00507142,2955.1,2954.5,0.00507142]
[1766471986464,3.38907142,2955.1,2954.5,0.00507142]
[1766471988354,0.00337194,2955.4,2954.8,1.46973364]
[1766471988560,0.00337194,2955.4,2954.8,4.85373364]
[1766471988763,0.00337194,2955.4,2954.8,3.384]
[1766471989151,0.00337194,2955.4,2954.8,4.85373364]
[1766471989563,0.00844336,2955.4,2954.8,4.85373364]
[1766471989969,0.00844336,2955.4,2954.8,3.384]
[1766471990267,1.478177,2955.4,2954.8,3.384]
[1766471991268,0.00844336,2955.4,2954.8,3.384]
[1766471991475,0.00844336,2955.4,2954.5,0.00507142]
[1766471991867,0.16926,2956.1,2954.6,4.85473364]
[1766471992064,1.46973364,2955.9,2954.8,1.46973364]
[1766471992261,3.385,2956.0,2955.4,1.46973364]
[1766471992565,4.85473364,2956.4,2955.5,3.385]
[1766471993066,0.00507142,2956.2,2955.5,3.385]
[1766471993261,1.47480506,2956.2,2955.5,3.385]
[1766471993967,0.00507142,2956.2,2955.5,3.385]
[1766471995765,0.16685839,2957.1,2955.6,2.26845003]
[1766471995967,2.26845003,2956.8,2955.7,3.385]
[1766471996171,3.385,2957.0,2955.7,3.385]
[1766471996671,0.00507142,2956.6,2956.1,0.00507142]
[1766471996973,0.00800286,2956.6,2956.1,0.00507142]
[1766471997677,3.39300286,2956.6,2956.1,0.00507142]
[1766472000277,3.39300286,2956.6,2955.8,3.385]
[1766472001477,3.39300286,2956.6,2955.9,0.00507142]
[1766472002779,0.00800286,2956.6,2955.9,0.00507142]
[1766472003472,5.885,2957.2,2955.9,0.00507142]
[1766472003674,3.384,2956.9,2955.9,0.00507142]
[1766472004570,0.00507142,2956.7,2955.9,0.00507142]
[1766472010782,0.00507142,2956.7,2956.0,3.384]
[1766472010976,3.384,2956.6,2955.6,3.384]
[1766472011184,3.55323,2956.6,2955.6,3.384]
[1766472011484,8.59223,2956.6,2955.6,3.384]
[1766472012284,8.59223,2956.6,2955.8,0.00507142]
[1766472014479,10.06215097,2956.6,2955.8,0.00507142]
[1766472014888,1.63915097,2956.6,2955.8,0.00507142]
[1766472015089,3.384,2956.5,2955.8,0.00507142]
[1766472018182,3.384,2956.5,2954.7,1.46992097]
[1766472018183,1.46992097,2955.9,2953.3,4.40976291]
[1766472018491,3.384,2955.8,2954.7,1.46992097]
[1766472018690,1.46992097,2955.7,2954.8,3.384]
[1766472019290,1.46992097,2955.7,2955.0,0.00507142]
[1766472019679,1.46992097,2955.1,2954.4,0.00376593]
[1766472019980,3.384,2955.1,2954.4,1.4736869]
[1766472020688,0.00507142,2955.0,2954.5,0.00507142]
[1766472024093,0.00507142,2955.0,2954.5,3.39007142]
[1766472024488,6.05428,2955.7,2954.5,5.65969522]
[1766472024694,3.385,2955.5,2954.5,5.65969522]
[1766472024996,0.16928,2955.7,2954.5,5.65969522]
[1766472025191,3.385,2955.6,2954.5,11.30869522]
[1766472025491,3.385,2955.9,2954.8,2.2696238]
[1766472025691,3.385,2955.9,2954.9,3.385]
[1766472026486,0.00507142,2955.7,2954.9,3.385]
[1766472028595,0.00507142,2955.7,2954.9,5.6546238]
[1766472029895,0.00507142,2955.7,2954.9,3.385]
[1766472030293,3.385,2955.9,2955.2,2.2696238]
[1766472030485,3.385,2955.9,2955.3,3.385]
[1766472030687,8.385,2956.2,2955.3,3.385]
[1766472031296,0.00507142,2956.0,2955.3,3.385]
[1766472032301,3.55424,2956.3,2955.3,3.385]
[1766472033296,0.00507142,2956.1,2955.3,3.385]
[1766472036397,0.00507142,2956.1,2955.4,3.385]
[1766472037594,0.00507142,2956.1,2955.3,6.326]
[1766472037802,0.00507142,2956.1,2954.8,11.03219251]
[1766472037803,0.00507142,2956.1,2954.6,40.8]
[1766472038002,0.00507142,2956.1,2954.7,18.173]
[1766472038499,3.385,2956.0,2954.8,9.712]
[1766472038698,3.385,2956.0,2954.5,0.00507142]
[1766472038901,3.385,2956.0,2954.6,18.175]
[1766472040001,3.385,2956.0,2954.5,0.00507142]
[1766472040204,3.385,2956.0,2954.7,6.329]
[1766472042406,3.385,2956.0,2954.8,9.714]
[1766472043895,3.385,2956.0,2955.1,1.47019116]
[1766472044108,3.385,2956.0,2955.2,3.385]
[1766472048510,3.385,2956.0,2955.0,6.327]
[1766472048817,3.385,2956.0,2955.1,3.385]
[1766472050510,0.16927,2955.8,2954.5,0.00507142]
[1766472050711,3.55428,2955.7,2954.6,3.385]
[1766472050911,1.47019116,2955.6,2954.6,3.385]
[1766472051514,3.55428,2955.7,2954.6,3.385]
[1766472052513,5.02447116,2955.7,2954.6,3.385]
[1766472053318,3.55428,2955.7,2954.6,3.385]
[1766472056021,3.55428,2955.7,2954.5,1.47526258]
[1766472056225,3.55428,2955.7,2954.6,3.385]
[1766472064125,3.385,2955.7,2954.9,1.47019116]
[1766472064329,3.385,2955.7,2955.0,3.385]
[1766472067722,3.385,2955.7,2955.0,4.85519116]
[1766472068123,5.31,2955.9,2955.3,1.47019116]
[1766472068325,0.00507142,2956.1,2955.6,1.47019116]
[1766472068531,3.385,2956.5,2955.9,1.47019116]
[1766472068730,3.385,2956.5,2955.7,4.85519116]
[1766472068926,3.39,2956.8,2956.0,1.47019116]
[1766472069128,0.00307414,2956.9,2956.3,1.47019116]
[1766472069334,0.00307414,2956.9,2956.3,4.85519116]
[1766472069634,3.385,2957.1,2956.3,3.39007142]
[1766472070432,3.38914558,2957.1,2956.3,3.39007142]
[1766472071130,9.27,2957.4,2956.8,1.47019116]
[1766472071333,3.385,2957.4,2956.8,1.47019116]
[1766472071636,3.385,2957.4,2956.7,3.385]
[1766472072035,3.385,2957.4,2956.9,1.47019116]
[1766472072238,3.38831655,2957.4,2956.9,0.00390476]
[1766472074232,3.38831655,2957.4,2956.3,0.00507142]
[1766472074532,3.38831655,2957.4,2956.4,3.384]
[1766472075034,3.38831655,2957.4,2956.5,1.47019116]
[1766472075237,3.38831655,2957.4,2956.9,1.47019116]
[1766472075435,3.38831655,2957.4,2956.5,0.00280143]
[1766472075436,3.38831655,2957.4,2956.7,3.384]
[1766472075837,3.38831655,2957.4,2956.7,4.85419116]
[1766472076641,3.38831655,2957.4,2956.7,3.384]
[1766472080042,3.38831655,2957.4,2956.8,3.384]
[1766472081536,0.16916,2957.8,2956.8,3.384]
[1766472081738,3.384,2957.7,2956.8,3.384]
[1766472081941,3.384,2957.7,2956.6,1.47019116]
[1766472082139,3.384,2957.7,2956.5,0.00280143]
[1766472082340,1.47019116,2957.6,2956.6,3.384]
[1766472082542,0.00295268,2957.6,2956.6,3.384]
[1766472082743,0.00295268,2957.6,2956.6,4.85419116]
[1766472083544,0.00295268,2957.6,2956.9,1.47019116]
[1766472083837,0.00295268,2957.6,2957.0,3.384]
[1766472084745,0.00295268,2957.6,2957.1,1.47019116]
[1766472084947,3.384,2957.7,2957.1,1.47019116]
[1766472085945,3.38790576,2957.7,2957.1,1.47019116]
[1766472086144,0.16912,2958.5,2957.3,1.47019116]
[1766472086342,9.265,2958.4,2957.4,3.383]
[1766472086641,1.47019116,2958.3,2956.8,1.47019116]
[1766472086847,1.47019116,2957.9,2956.9,8.35]
[1766472087044,4.85319116,2957.9,2957.0,3.383]
[1766472087248,3.38577069,2957.9,2957.1,3.383]
[1766472088341,0.16913,2958.3,2957.1,3.383]
[1766472088644,3.383,2958.5,2958.0,1.47019116]
[1766472088947,3.383,2958.5,2958.0,0.00507142]
[1766472089351,3.38581212,2958.5,2958.0,0.00507142]
[1766472091051,3.38581212,2958.5,2956.6,2.56635988]
[1766472091244,0.16913,2958.3,2956.7,4.884]
[1766472091548,5.391,2958.2,2956.7,4.884]
[1766472091945,0.00281212,2958.5,2957.2,0.00507142]
[1766472092152,3.38581212,2958.5,2957.3,3.383]
[1766472092757,3.38581212,2958.5,2957.4,3.383]
[1766472095452,3.38581212,2958.5,2957.2,0.00507142]
[1766472095655,3.38581212,2958.5,2957.3,3.383]
[1766472095841,3.38581212,2958.5,2957.2,0.00507142]
[1766472096150,0.16913,2958.4,2957.2,3.38807142]
[1766472096945,5.65160414,2958.5,2957.2,3.38807142]
[1766472097254,0.16914,2958.2,2957.2,3.38807142]
[1766472097553,8.389,2958.1,2957.2,0.00507142]
[1766472099349,8.55814,2958.1,2957.2,0.00507142]
[1766472099656,0.16915,2958.0,2957.2,0.00507142]
[1766472115561,2.26579202,2957.7,2956.5,0.00280143]
[1766472115765,2.26579202,2958.1,2956.5,0.00280143]
[1766472115967,1.4687901,2957.8,2956.7,1.4687901]
[1766472116267,4.706,2957.7,2956.7,1.4687901]
[1766472116466,0.00507142,2957.5,2956.9,0.00507142]
[1766472116667,3.383,2957.4,2956.9,0.00507142]
[1766472118171,9.267,2958.0,2956.9,0.00507142]
[1766472118382,9.267,2958.0,2957.1,1.4687901]
[1766472118872,1.4687901,2957.9,2957.0,3.383]
[1766472119973,9.267,2958.0,2957.0,3.383]
[1766472120279,9.267,2957.9,2957.3,1.4687901]
[1766472120768,0.00281212,2958.5,2957.7,1.4687901]
[1766472120968,4.77281212,2958.5,2958.0,1.4687901]
[1766472121272,1.4687901,2958.3,2957.7,3.383]
[1766472121473,3.383,2958.2,2957.7,3.383]
[1766472121671,7.3527901,2958.1,2957.0,1.4687901]
[1766472121875,7.3527901,2958.1,2957.1,3.383]
[1766472122374,1.4687901,2957.9,2957.2,3.383]
[1766472122581,4.8517901,2957.9,2957.2,3.383]
[1766472123273,1.4687901,2957.7,2957.2,3.383]
[1766472123577,9.267,2957.6,2956.9,3.38807142]
[1766472127184,3.383,2957.5,2956.9,3.38807142]
[1766472128078,3.383,2957.6,2956.9,3.38807142]
[1766472131482,0.16914,2958.1,2956.9,3.38807142]
[1766472131787,9.266,2958.0,2956.9,3.38807142]
[1766472133781,0.16914,2958.1,2956.9,3.38807142]
[1766472133978,5.883,2957.9,2956.9,3.38807142]
[1766472134985,3.383,2957.9,2957.0,2.26599021]
[1766472135481,3.1861,2957.9,2957.0,2.26599021]
[1766472135684,5.883,2958.1,2957.0,2.26599021]
[1766472136177,8.46081212,2958.5,2957.0,2.26599021]
[1766472136178,0.00281212,2958.5,2957.0,2.26599021]
[1766472136387,3.475,2958.4,2957.0,2.26599021]
[1766472137381,0.16911,2958.8,2957.3,2.26599021]
[1766472137585,6.479,2964.3,2957.6,2.26599021]
[1766472137586,3.383,2959.2,2957.6,2.26599021]
[1766472137793,3.383,2959.1,2958.1,0.00507142]
[1766472137988,3.383,2959.1,2958.1,3.38807142]
[1766472138185,3.383,2959.1,2958.1,0.00507142]
[1766472138381,3.38615832,2959.1,2958.1,0.00507142]
[1766472144396,3.38615832,2959.1,2958.3,2.26599021]
[1766472144696,3.38615832,2959.1,2958.4,3.382]
[1766472145991,3.38615832,2959.1,2958.6,1.46688254]
[1766472146197,3.38615832,2959.1,2958.6,0.00281215]
[1766472146391,3.38615832,2959.1,2958.7,1.46688254]
[1766472148194,3.382,2959.4,2958.9,1.46688254]
[1766472148498,3.382,2959.5,2959.1,1.46688254]
[1766472148696,0.16905,2959.7,2959.1,1.46688254]
[1766472148886,3.382,2959.6,2959.1,1.46688254]
[1766472149092,3.549,2959.9,2959.1,1.46688254]
[1766472149292,3.55233022,2959.9,2959.1,1.46688254]
[1766472150293,0.00333022,2959.9,2959.3,1.46688254]
[1766472150493,3.38533022,2959.9,2959.3,1.46688254]
[1766472151193,1.63585254,2961.1,2959.8,1.46688254]